bitfinex/quotes_SOLUSD_20250901
["timestamp","ask_amount","ask_price","bid_price","bid_amount"]
[1756738549983,0.68,200.5,200.47,4.98827494]
[1756738550152,0.68,200.49,200.47,9.19421575]
[1756738550773,40.62,200.5,200.47,9.19421575]
[1756738550963,41.3,200.5,200.47,9.19421575]
[1756738551168,0.68,200.49,200.47,9.19421575]
[1756738552280,40.6,200.5,200.47,4.20594081]
[1756738552449,0.1,200.51,200.48,4.20594081]
[1756738552652,0.1,200.51,200.5,4.20594081]
[1756738552952,1e-08,200.51,200.5,4.20594081]
[1756738553154,1e-08,200.51,200.5,18.35153482]
[1756738553451,1e-08,200.51,200.5,22.55747563]
[1756738554270,1e-08,200.51,200.5,27.5450068]
[1756738556278,1e-08,200.51,200.5,19.13312518]
[1756738556483,1e-08,200.51,200.5,22.78906599]
[1756738557067,1e-08,200.51,200.5,35.19347198]
[1756738560860,1e-08,200.51,200.5,39.94941279]
[1756738561474,1e-08,200.51,200.5,35.19347198]
[1756738561690,1e-08,200.51,200.5,35.74347198]
[1756738562386,1e-08,200.51,200.5,35.19347198]
[1756738563581,1e-08,200.51,200.5,35.74347198]
[1756738563959,1e-08,200.51,200.5,35.19347198]
[1756738564558,1e-08,200.51,200.5,45.52753117]
[1756738564776,1e-08,200.51,200.5,49.73347198]
[1756738566090,1e-08,200.51,200.5,50.28347198]
[1756738567078,1e-08,200.51,200.5,49.73347198]
[1756738567474,1e-08,200.51,200.5,30.98753117]
[1756738567672,1e-08,200.51,200.5,75.71347198]
[1756738568494,1e-08,200.51,200.5,94.20716837]
[1756738570194,1e-08,200.51,200.5,44.58312518]
[1756738570378,1e-08,200.51,200.5,89.28906599]
[1756738572001,1e-08,200.51,200.5,48.78906599]
[1756738572192,1e-08,200.51,200.5,89.28906599]
[1756738572502,0.67000001,200.51,200.5,49.69347198]
[1756738574700,1e-08,200.51,200.5,49.69347198]
[1756738576394,0.67000001,200.51,200.5,49.69347198]
[1756738576588,1e-08,200.51,200.5,49.69347198]
[1756738577279,1e-08,200.51,200.5,63.28906599]
[1756738577485,1e-08,200.51,200.5,68.0450068]
[1756738577701,0.67,200.62,200.54,39.59559401]
[1756738577887,0.67,200.62,200.61,4.20594081]
[1756738578089,0.67,200.62,200.61,9.19073718]
[1756738578897,4.20594081,200.67,200.61,9.19073718]
[1756738578898,0.67,200.67,200.62,13.59559401]
[1756738579211,0.67,200.67,200.66,4.20594081]
[1756738580303,0.67,200.67,200.66,4.98355427]
[1756738580510,0.67,200.67,200.66,9.18949508]
[1756738581181,0.2,200.68,200.66,9.18949508]
[1756738581382,0.87,200.68,200.67,4.20594081]
[1756738581595,0.2,200.68,200.67,4.20594081]
[1756738582295,0.87,200.68,200.67,9.18924673]
[1756738582610,0.2,200.68,200.67,9.18924673]
[1756738584090,0.2,200.68,200.67,49.62924673]
[1756738584298,0.87,200.68,200.67,49.62924673]
[1756738584684,0.87,200.68,200.58,4.98554192]
[1756738584685,5.07594081,200.68,200.58,4.98554192]
[1756738584891,4.20594081,200.65,200.6,4.20594081]
[1756738585097,0.67,200.64,200.6,4.20594081]
[1756738585302,0.67,200.63,200.6,4.20594081]
[1756738585505,0.67,200.63,200.59,4.20594081]
[1756738585714,0.67,200.62,200.58,49.63148273]
[1756738585914,0.67,200.61,200.58,49.63148273]
[1756738586113,0.67,200.6,200.58,45.42554192]
[1756738586320,0.67,200.59,200.58,4.98554192]
[1756738586613,0.67,200.62,200.58,4.98554192]
[1756738586786,0.67,200.61,200.58,4.98554192]
[1756738586989,0.67,200.61,200.58,9.19148273]
[1756738587208,4.20594081,200.64,200.58,9.19148273]
[1756738587406,0.67,200.63,200.58,9.19148273]
[1756738587720,0.67,200.62,200.58,21.65533755]
[1756738587925,0.67,200.61,200.58,17.44939674]
[1756738588120,4.20594081,200.64,200.58,21.65533755]
[1756738588306,0.67,200.63,200.58,21.65533755]
[1756738588921,0.67,200.62,200.58,21.65533755]
[1756738589207,26.0,200.67,200.58,21.65533755]
[1756738589208,0.67,200.61,200.58,17.44939674]
[1756738589409,0.67,200.6,200.58,17.44939674]
[1756738589590,4.20594081,200.62,200.58,4.98554192]
[1756738589794,4.20594081,200.6,200.58,4.98554192]
[1756738590023,0.67,200.59,200.58,4.98554192]
[1756738590204,0.67,200.59,200.57,4.98579049]
[1756738590514,0.67,200.58,200.57,4.98579049]
[1756738591826,0.67,200.58,200.55,4.98619673]
[1756738591827,4.87594081,200.58,200.55,4.98619673]
[1756738592022,4.87594081,200.57,200.55,4.98619673]
[1756738592224,0.67,200.56,200.54,4.98653635]
[1756738592603,0.67,200.55,200.54,4.98653635]
[1756738593511,4.20594081,200.57,200.54,4.98653635]
[1756738593715,0.67,200.56,200.54,4.98653635]
[1756738593919,4.87594081,200.56,200.54,4.98653635]
[1756738594108,71.3845652,200.62,200.51,4.98728242]
[1756738594109,4.87594081,200.55,200.51,4.98728242]
[1756738594313,0.67,200.54,200.51,4.98728242]
[1756738595535,0.72,200.54,200.51,4.98728242]
[1756738596402,0.72,200.59,200.53,4.20594081]
[1756738596707,134.62,200.61,200.57,4.20594081]
[1756738597128,0.72,200.6,200.56,4.20594081]
[1756738597305,0.72,200.59,200.53,40.4]
[1756738597510,0.72,200.59,200.54,4.20594081]
[1756738597710,0.72,200.58,200.55,4.20594081]
[1756738598120,0.72,200.58,200.54,4.20594081]
[1756738598331,4.20594081,200.6,200.53,40.4]
[1756738598332,4.20594081,200.6,200.55,4.9862877]
[1756738598625,0.72,200.59,200.55,9.19222851]
[1756738598837,0.72,200.58,200.55,9.19222851]
[1756738599013,4.20594081,200.6,200.55,9.19222851]
[1756738599218,0.72,200.57,200.55,9.19222851]
[1756738599532,4.92594081,200.56,200.5,26.12]
[1756738599726,4.92594081,200.56,200.51,9.19322323]
[1756738600030,0.72,200.55,200.51,9.19322323]
[1756738600901,0.72,200.55,200.51,9.31322323]
[1756738601328,4.92594081,200.54,200.51,5.10728242]
[1756738601509,0.72,200.53,200.51,5.10728242]
[1756738601717,0.72,200.52,200.51,5.10728242]
[1756738602136,40.38,200.57,200.51,22.3314293]
[1756738602312,40.38,200.57,200.52,4.20594081]
[1756738602629,134.62,200.61,200.57,4.98579049]
[1756738602835,134.62,200.61,200.57,9.1917313]
[1756738603005,0.72,200.6,200.57,4.98579049]
[1756738603209,0.72,200.59,200.57,4.98579049]
[1756738604119,138.10594081,200.61,200.57,4.98579049]
[1756738604327,0.72,200.6,200.57,4.98579049]
[1756738604512,0.72,200.59,200.57,4.98579049]
[1756738604713,0.72,200.58,200.57,4.98579049]
[1756738604936,0.72,200.58,200.54,12.46610814]
[1756738605230,4.20594081,200.56,200.53,4.98678501]
[1756738605437,0.72,200.55,200.53,4.98678501]
[1756738605613,4.92594081,200.55,200.52,4.98702713]
[1756738605808,4.92594081,200.54,200.51,5.10721348]
[1756738606016,0.72,200.53,200.51,0.12]
[1756738606224,0.72,200.53,200.51,5.10722224]
[1756738606709,0.72,200.56,200.51,5.10722224]
[1756738606915,0.72,200.58,200.54,4.20594081]
[1756738607112,4.92594081,200.57,200.51,21.78136912]
[1756738607419,4.20594081,200.55,200.51,5.10722224]
[1756738607607,0.72,200.54,200.51,5.10722224]
[1756738608036,4.20594081,200.56,200.51,5.10722224]
[1756738608231,44.56594081,200.57,200.52,4.20594081]
[1756738608440,4.20594081,200.55,200.51,17.57542831]
[1756738608610,4.92594081,200.55,200.51,17.57542831]
[1756738608810,0.72,200.54,200.51,5.10722224]
[1756738609046,0.72,200.53,200.51,5.10722224]
[1756738609343,4.20594081,200.54,200.51,5.10722224]
[1756738609540,0.72,200.52,200.51,5.10722224]
[1756738609846,4.20594081,200.54,200.51,5.10722224]
[1756738610132,40.36,200.55,200.51,9.31316305]
[1756738610544,178.46594081,200.56,200.51,5.10722224]
[1756738610717,0.72,200.55,200.51,9.31316305]
[1756738611545,133.9,200.56,200.54,4.20594081]
[1756738611846,133.9,200.56,200.55,4.20594081]
[1756738612419,133.9,200.56,200.54,4.20594081]
[1756738612823,133.9,200.56,200.55,4.9862877]
[1756738613537,0.72,200.59,200.55,17.45200697]
[1756738613853,40.34,200.61,200.56,4.20594081]
[1756738614043,40.34,200.61,200.55,18.00200697]
[1756738614044,133.9,200.63,200.59,4.20594081]
[1756738614341,174.96,200.63,200.59,4.20594081]
[1756738614522,133.9,200.63,200.6,4.20594081]
[1756738614922,133.9,200.63,200.61,9.19073718]
[1756738615225,44.54594081,200.66,200.61,9.19073718]
[1756738615426,45.26594081,200.66,200.61,9.19073718]
[1756738615625,41.06,200.66,200.61,21.6527281]
[1756738616337,41.06,200.66,200.59,0.55]
[1756738616338,0.72,200.65,200.6,9.19092034]
[1756738616539,40.34,200.66,200.6,4.98497953]
[1756738616840,0.72,200.64,200.6,4.98497953]
[1756738617036,0.72,200.63,200.6,4.98497953]
[1756738617727,4.20594081,200.65,200.6,4.98497953]
[1756738617922,0.72,200.62,200.6,4.98497953]
[1756738618340,0.72,200.61,200.6,4.98497953]
[1756738618737,0.72,200.61,200.58,4.98554192]
[1756738618942,0.72,200.6,200.58,4.98554192]
[1756738619132,0.72,200.59,200.58,4.98554192]
[1756738619549,45.24594081,200.62,200.58,4.98554192]
[1756738619756,44.52594081,200.62,200.58,4.98554192]
[1756738619940,4.20594081,200.62,200.58,4.98554192]
[1756738620140,0.72,200.61,200.58,4.98554192]
[1756738620550,0.72,200.6,200.58,4.98554192]
[1756738620957,0.75,200.6,200.58,4.98554192]
[1756738621745,0.03,200.6,200.58,4.98554192]
[1756738622049,0.72,200.59,200.58,4.98554192]
[1756738622828,0.03,200.6,200.58,4.98554192]
[1756738623124,0.03,200.6,200.57,4.20594081]
[1756738623858,0.03,200.6,200.55,17.45156243]
[1756738624161,0.72,200.59,200.55,21.65750324]
[1756738624347,0.03,200.6,200.55,21.65750324]
[1756738624533,4.20594081,200.56,200.52,4.98703371]
[1756738624733,4.20594081,200.57,200.52,4.98703371]
[1756738624934,4.20594081,200.57,200.52,9.19297452]
[1756738625237,0.71,200.56,200.52,9.19297452]
[1756738625559,0.71,200.55,200.52,4.98703371]
[1756738626562,4.91594081,200.57,200.52,9.19297452]
[1756738626761,0.71,200.56,200.52,9.19297452]
[1756738627057,4.20594081,200.57,200.52,9.19297452]
[1756738627058,0.71,200.55,200.52,4.98703371]
[1756738627262,4.20594081,200.56,200.52,4.98703371]
[1756738627433,4.91594081,200.56,200.52,4.98703371]
[1756738628136,4.20594081,200.56,200.52,4.98703371]
[1756738628336,0.71,200.55,200.52,4.98703371]
[1756738628537,44.48594081,200.57,200.52,9.19297452]
[1756738628732,45.19594081,200.57,200.52,9.19297452]
[1756738629329,4.20594081,200.55,200.52,4.98703371]
[1756738629636,4.91594081,200.54,200.52,4.98703371]
[1756738629838,0.71,200.53,200.51,0.12]
[1756738630044,0.71,200.52,200.51,5.10728242]
[1756738630672,0.71,200.54,200.51,5.10728242]
[1756738630852,0.71,200.53,200.51,5.10728242]
[1756738631056,0.71,200.52,200.51,5.10728242]
[1756738631667,40.28,200.54,200.51,5.10728242]
[1756738631865,40.99,200.54,200.51,5.10728242]
[1756738632346,40.28,200.54,200.51,5.10728242]
[1756738632950,4.20594081,200.55,200.51,5.10728242]
[1756738633249,40.28,200.55,200.51,9.31322323]
[1756738633755,40.99,200.55,200.51,9.31322323]
[1756738634253,0.71,200.54,200.51,9.31322323]
[1756738634441,0.71,200.54,200.51,5.10728242]
[1756738634646,0.71,200.53,200.51,5.10728242]
[1756738634848,0.71,200.52,200.51,5.10728242]
[1756738635454,0.71,200.54,200.51,9.31322323]
[1756738635648,40.99,200.54,200.51,9.31322323]
[1756738635964,0.71,200.54,200.51,9.31322323]
[1756738636171,40.26,200.55,200.53,4.20594081]
[1756738636945,40.26,200.55,200.51,5.10728242]
[1756738637146,40.26,200.55,200.53,4.20594081]
[1756738637344,40.26,200.56,200.53,4.20594081]
[1756738638144,0.71,200.55,200.54,4.98653635]
[1756738638473,133.9,200.57,200.54,9.19247716]
[1756738638651,133.9,200.57,200.55,4.20594081]
[1756738638964,134.61,200.57,200.55,4.20594081]
[1756738639166,0.03,200.6,200.56,4.75594081]
[1756738639372,0.03,200.6,200.59,4.20594081]
[1756738640073,0.03,200.6,200.59,9.19123419]
[1756738643677,0.74,200.6,200.59,9.19123419]
[1756738644153,0.74,200.6,200.59,4.20594081]
[1756738644350,0.03,200.6,200.59,4.20594081]
[1756738644557,0.74,200.6,200.59,4.20594081]
[1756738645279,0.74,200.6,200.59,9.19123419]
[1756738646271,0.74,200.6,200.59,4.98529338]
[1756738646778,0.03,200.6,200.59,9.19123419]
[1756738647185,0.74,200.6,200.59,9.19123419]
[1756738647352,0.74,200.6,200.56,4.98603909]
[1756738647680,0.71,200.59,200.56,9.1919799]
[1756738647878,0.71,200.58,200.56,9.1919799]
[1756738648175,0.74,200.6,200.57,4.20594081]
[1756738648380,40.96,200.6,200.57,4.20594081]
[1756738648758,0.71,200.59,200.57,4.20594081]
[1756738648955,0.71,200.58,200.57,4.20594081]
[1756738649145,0.71,200.58,200.56,9.1919799]
[1756738649350,0.71,200.57,200.56,9.1919799]
[1756738649948,0.71,200.57,200.54,12.465875]
[1756738650160,0.71,200.57,200.56,4.20594081]
[1756738650363,133.9,200.59,200.56,4.20594081]
[1756738650650,133.9,200.59,200.54,12.465875]
[1756738650651,133.9,200.59,200.58,4.20594081]
[1756738651459,133.9,200.59,200.58,4.75594081]
[1756738652248,133.9,200.59,200.58,9.74148273]
[1756738652759,133.9,200.59,200.58,4.98554192]
[1756738652956,133.9,200.59,200.58,9.19148273]
[1756738655382,133.9,200.59,200.58,4.98554192]
[1756738655586,133.9,200.59,200.58,9.19148273]
[1756738657557,0.03,200.6,200.58,9.74148273]
[1756738657761,133.9,200.64,200.59,4.75594081]
[1756738657967,133.9,200.64,200.63,4.20594081]
[1756738658152,0.72,200.64,200.62,4.20594081]
[1756738658357,0.72,200.63,200.62,4.20594081]
[1756738658782,0.72,200.63,200.62,9.19048871]
[1756738660692,40.2,200.65,200.62,9.19048871]
[1756738660890,40.2,200.65,200.64,4.20594081]
[1756738661590,40.92,200.65,200.64,4.20594081]
[1756738662374,40.92,200.65,200.64,9.18999184]
[1756738663480,0.72,200.65,200.64,9.18999184]
[1756738663997,134.1,200.68,200.64,9.18999184]
[1756738664184,40.88,200.67,200.64,9.18999184]
[1756738664388,40.88,200.67,200.66,4.98355427]
[1756738665403,40.88,200.67,200.64,4.20594081]
[1756738665607,40.16,200.67,200.64,4.20594081]
[1756738665912,0.72,200.66,200.64,4.20594081]
[1756738666119,0.72,200.65,200.64,4.20594081]
[1756738667384,0.72,200.65,200.64,9.18999184]
[1756738668307,0.72,200.65,200.61,4.20594081]
[1756738668493,0.72,200.64,200.59,4.98524693]
[1756738668698,0.72,200.63,200.6,4.20594081]
[1756738668898,40.14,200.64,200.6,4.20594081]
[1756738668899,0.72,200.62,200.6,4.20594081]
[1756738669818,0.72,200.61,200.6,4.20594081]
[1756738669995,0.72,200.61,200.6,9.19098567]
[1756738670837,0.72,200.63,200.6,9.19098567]
[1756738670999,0.72,200.62,200.6,9.19098567]
[1756738671401,0.72,200.61,200.6,9.19098567]
[1756738671800,0.72,200.63,200.6,9.19098567]
[1756738672004,40.14,200.64,200.6,9.19098567]
[1756738672200,0.72,200.62,200.6,9.19098567]
[1756738673295,40.14,200.64,200.61,4.20594081]
[1756738673497,0.72,200.63,200.62,4.20594081]
[1756738673709,134.62,200.63,200.62,4.20594081]
[1756738674502,134.62,200.63,200.61,4.20594081]
[1756738675030,134.62,200.63,200.62,4.9845479]
[1756738675552,133.9,200.62,200.56,12.46477226]
[1756738675722,133.9,200.61,200.59,4.20594081]
[1756738675925,0.72,200.6,200.59,4.20594081]
[1756738676251,133.9,200.61,200.59,4.20594081]
[1756738676465,133.9,200.61,200.6,4.20594081]
[1756738676750,134.62,200.61,200.6,4.20594081]
[1756738677218,134.62,200.61,200.6,9.19098567]
[1756738677846,134.62,200.61,200.59,9.19117764]
[1756738678148,133.9,200.61,200.6,4.20594081]
[1756738678450,134.62,200.61,200.6,4.20594081]
[1756738679124,134.62,200.61,200.56,17.45081135]
[1756738679318,134.62,200.61,200.6,4.32594081]
[1756738681325,134.62,200.61,200.6,9.31098567]
[1756738683620,134.62,200.61,200.6,0.12]
[1756738684240,45.16810238,200.61,200.6,0.12]
[1756738684422,45.16810238,200.61,200.54,4.98629726]
[1756738684423,0.14216157,200.6,200.54,4.98629726]
[1756738684620,4.20594081,200.58,200.54,4.98629726]
[1756738684844,40.76,200.57,200.54,4.98629726]
[1756738685038,0.68,200.56,200.54,4.98629726]
[1756738685637,0.68,200.56,200.55,4.20594081]
[1756738686729,4.986297,200.58,200.55,9.19222851]
[1756738686927,40.08,200.58,200.57,4.20594081]
[1756738687124,12.467292,200.61,200.57,4.87594081]
[1756738687448,12.467292,200.61,200.6,4.20594081]
[1756738687955,40.76,200.63,200.6,4.20594081]
[1756738688133,40.76,200.63,200.61,4.20594081]
[1756738688326,0.68,200.62,200.61,4.20594081]
[1756738688950,0.68,200.62,200.61,9.19073718]
[1756738690448,40.08,200.63,200.61,9.19073718]
[1756738690842,40.08,200.63,200.61,4.98479637]
[1756738691050,40.08,200.63,200.58,4.98554192]
[1756738691245,40.08,200.63,200.6,4.20594081]
[1756738692654,0.68,200.62,200.6,4.20594081]
[1756738692823,0.68,200.62,200.6,9.19093503]
[1756738695952,40.08,200.63,200.6,9.19093503]
[1756738696145,40.76,200.63,200.6,9.19093503]
[1756738696457,12.465719,200.64,200.6,9.19093503]
[1756738696458,40.04,200.64,200.61,4.20594081]
[1756738696758,133.9,200.63,200.61,4.20594081]
[1756738696935,133.9,200.63,200.62,4.20594081]
[1756738697359,133.9,200.63,200.61,4.20594081]
[1756738697544,134.58,200.63,200.61,4.20594081]
[1756738698454,133.9,200.63,200.61,9.19065465]
[1756738698660,0.68,200.62,200.61,9.19065465]
[1756738699144,133.9,200.63,200.61,9.19065465]
[1756738700163,133.93,200.63,200.61,9.19065465]
[1756738703354,134.61,200.63,200.61,9.19065465]
[1756738703857,133.93,200.63,200.61,4.98471384]
[1756738704156,0.68,200.62,200.6,9.31094004]
[1756738705146,0.68,200.61,200.6,0.12]
[1756738705337,44.90594081,200.61,200.6,0.12]
[1756738705549,44.04896927,200.61,200.6,0.12]
[1756738705759,50.03363938,200.61,200.6,0.12]
[1756738707151,50.01363938,200.61,200.6,0.12]
[1756738708071,10.01363938,200.61,200.6,0.12]
[1756738708240,45.80769857,200.61,200.6,0.12]
[1756738708745,50.01363938,200.61,200.6,0.12]
[1756738709054,58.3485424,200.61,200.6,0.12]
[1756738709260,54.99843575,200.61,200.6,0.12]
[1756738709562,50.01363938,200.61,200.6,0.12]
[1756738710269,45.80769857,200.61,200.6,0.12]
[1756738710857,50.01363938,200.61,200.6,0.12]
[1756738712461,4.985537,200.61,200.6,4.99594081]
[1756738712642,0.03,200.63,200.6,4.99594081]
[1756738712843,0.03,200.63,200.62,4.20594081]
[1756738713064,0.03,200.63,200.61,0.67]
[1756738713265,40.66,200.62,200.6,0.12]
[1756738713584,4.20594081,200.61,200.6,0.12]
[1756738713740,8.55404338,200.61,200.6,0.12]
[1756738713944,9.23404338,200.61,200.6,0.12]
[1756738714568,14.21883975,200.61,200.6,0.12]
[1756738714747,17.57021578,200.61,200.6,0.12]
[1756738715462,31.16580979,200.61,200.6,0.12]
[1756738716758,35.3717506,200.61,200.6,0.12]
[1756738716953,39.59559401,200.58,200.57,0.12]
[1756738717180,87.27507242,200.58,200.57,0.12]
[1756738717363,87.93507242,200.58,200.57,0.12]
[1756738718682,92.92061434,200.58,200.57,0.12]
[1756738719765,0.14216157,200.52,200.51,0.12]
[1756738719965,58.56369639,200.52,200.51,0.12]
[1756738720689,1.999151,200.52,200.51,0.82]
[1756738720857,41.959151,200.52,200.51,0.82]
[1756738721585,1.999151,200.52,200.51,5.80728242]
[1756738721790,39.96,200.53,200.51,5.80728242]
[1756738721978,39.96,200.53,200.52,0.7]
[1756738722486,5.807282,200.54,200.52,0.7]
[1756738722663,5.807282,200.54,200.51,5.10717485]
[1756738722664,5.807282,200.54,200.53,0.7]
[1756738722870,4.20594081,200.57,200.53,0.7]
[1756738723065,39.96,200.56,200.54,0.7]
[1756738723259,49.273115,200.56,200.54,0.7]
[1756738724196,4.20594081,200.55,200.51,0.12]
[1756738724499,39.96,200.54,200.52,0.7]
[1756738724800,39.96,200.54,200.51,5.10723222]
[1756738724801,39.96,200.54,200.53,0.7]
[1756738724980,39.96,200.54,200.51,5.10723222]
[1756738724981,45.067477,200.54,200.52,0.7]
[1756738725581,45.067477,200.54,200.51,5.10723222]
[1756738725895,39.96,200.53,200.52,0.7]
[1756738726082,39.96,200.53,200.51,9.31317303]
[1756738726689,39.96,200.53,200.52,0.7]
[1756738727595,39.96,200.53,200.51,9.31317303]
[1756738728369,39.96,200.53,200.51,10.01317303]
[1756738728877,39.96,200.53,200.51,0.12]
[1756738729181,0.66,200.52,200.51,0.12]
[1756738729386,10.69584938,200.52,200.51,0.12]
[1756738729590,24.29144339,200.52,200.51,0.12]
[1756738730919,29.2784771,200.52,200.51,0.12]
[1756738733403,23.63144339,200.52,200.51,0.12]
[1756738733709,45.76990857,200.52,200.51,0.82]
[1756738733883,49.97584938,200.52,200.51,0.82]
[1756738734211,49.97584938,200.52,200.51,0.12]
[1756738735302,50.63584938,200.52,200.51,0.12]
[1756738736002,49.97584938,200.52,200.51,0.12]
[1756738736204,45.76990857,200.52,200.51,0.12]
[1756738736396,49.97584938,200.52,200.51,0.12]
[1756738739216,50.63584938,200.52,200.51,0.12]
[1756738739415,55.62288309,200.52,200.51,0.12]
[1756738739802,69.2184771,200.52,200.51,0.12]
[1756738741500,133.92216157,200.51,200.5,0.12]
[1756738741714,138.12810238,200.51,200.5,0.12]
[1756738741910,143.7753848,200.51,200.5,0.12]
[1756738742113,161.57691962,200.51,200.5,0.12]
[1756738742311,157.42524868,200.51,200.5,0.12]
[1756738742513,201.53118949,200.51,200.5,0.12]
[1756738742717,203.53063949,200.51,200.5,0.12]
[1756738743997,207.7365803,200.51,200.5,0.12]
[1756738744310,167.8365803,200.51,200.5,0.12]
[1756738744520,207.7365803,200.51,200.5,0.12]
[1756738746201,167.8365803,200.51,200.5,0.12]
[1756738746400,203.53063949,200.51,200.5,0.12]
[1756738747017,163.63063949,200.51,200.5,0.12]
[1756738747323,135.77945,200.51,200.5,0.84]
[1756738747508,173.82216157,200.51,200.5,0.84]
[1756738747834,133.78,200.51,200.5,0.84]
[1756738748008,173.68,200.51,200.5,0.84]
[1756738748617,133.78,200.51,200.5,0.84]
[1756738748822,133.78,200.51,200.5,5.82753117]
[1756738749123,173.68,200.51,200.5,10.03347198]
[1756738749312,133.78,200.51,200.5,10.03347198]
[1756738749512,4.987724,200.55,200.5,10.03347198]
[1756738749718,39.88,200.54,200.51,4.92594081]
[1756738749921,39.88,200.54,200.52,0.72]
[1756738750126,39.88,200.54,200.51,4.20594081]
[1756738750127,39.88,200.54,200.53,0.72]
[1756738751319,39.88,200.54,200.53,4.92594081]
[1756738751509,39.88,200.54,200.53,0.72]
[1756738752213,39.88,200.54,200.5,0.12]
[1756738752214,44.08594081,200.54,200.5,0.12]
[1756738752532,39.88,200.54,200.51,0.72]
[1756738752706,39.88,200.54,200.52,0.72]
[1756738753342,44.08594081,200.54,200.5,0.12]
[1756738753508,44.08594081,200.54,200.51,0.72]
[1756738753921,44.08594081,200.54,200.5,0.12]
[1756738754163,4.20594081,200.53,200.51,0.72]
[1756738754361,39.88,200.52,200.51,0.72]
[1756738755089,39.86,200.52,200.51,0.72]
[1756738756848,44.06594081,200.52,200.5,0.12]
[1756738757065,4.20594081,200.51,200.5,0.12]
[1756738757249,44.06594081,200.52,200.5,0.12]
[1756738757897,39.86,200.52,200.5,0.12]
[1756738758078,39.86,200.52,200.51,0.72]
[1756738758478,39.86,200.52,200.5,0.12]
[1756738758698,4.92594081,200.51,200.5,0.12]
[1756738759001,10.0553848,200.51,200.5,0.12]
[1756738759890,0.14216157,200.51,200.5,0.12]
[1756738760066,4.34810238,200.51,200.5,0.12]
[1756738760406,70.20810238,200.51,200.5,0.12]
[1756738761197,70.18810238,200.51,200.5,0.12]
[1756738762275,30.34810238,200.51,200.5,0.12]
[1756738762491,70.18810238,200.51,200.5,0.12]
[1756738763198,70.90810238,200.51,200.5,0.12]
[1756738763405,75.8953848,200.51,200.5,0.12]
[1756738763578,36.0553848,200.51,200.5,0.12]
[1756738763781,75.8953848,200.51,200.5,0.12]
[1756738765007,77.8944358,200.51,200.5,0.12]
[1756738765582,75.8953848,200.51,200.5,0.12]
[1756738765803,77.8944358,200.51,200.5,0.12]
[1756738766507,73.68849499,200.51,200.5,0.12]
[1756738766708,91.49002981,200.51,200.5,0.12]
[1756738768411,87.284089,200.51,200.5,0.12]
[1756738768615,91.49002981,200.51,200.5,0.12]
[1756738768796,51.65002981,200.51,200.5,0.12]
[1756738768979,91.47002981,200.51,200.5,0.12]
[1756738771584,37.3344358,200.51,200.5,0.12]
[1756738771796,77.1544358,200.51,200.5,0.12]
[1756738772617,72.16715338,200.51,200.5,0.12]
[1756738773013,72.88715338,200.51,200.5,0.12]
[1756738774413,77.8744358,200.51,200.5,0.12]
[1756738775618,77.1544358,200.51,200.5,0.12]
[1756738775997,70.14810238,200.51,200.5,0.12]
[1756738778222,36.0353848,200.51,200.5,0.12]
[1756738778418,75.8353848,200.51,200.5,0.12]
[1756738778619,75.1353848,200.51,200.5,0.12]
[1756738779000,70.14810238,200.51,200.5,0.12]
[1756738779404,75.8353848,200.51,200.5,0.12]
[1756738781626,77.1345358,200.51,200.5,0.12]
[1756738783522,73.62859499,200.51,200.5,0.12]
[1756738784509,77.8345358,200.51,200.5,0.12]
[1756738785929,72.92859499,200.51,200.5,0.12]
[1756738786230,67.94131257,200.51,200.5,0.12]
[1756738786731,67.759151,200.51,200.5,0.79]
[1756738787108,67.759151,200.51,200.5,0.12]